bitfinex-derivatives/quotes_ETHF0:USTF0_20250329
["timestamp","ask_amount","ask_price","bid_price","bid_amount"]
[1743277426469,0.00816649,1819.3,1819.2,1.0998]
[1743277426670,0.00816649,1819.3,1819.2,4.7968]
[1743277430670,0.00816649,1819.3,1819.2,1.0998]
[1743277430870,1.37086649,1819.3,1819.2,4.7968]
[1743277436073,2.47060649,1819.3,1819.2,3.697]
[1743277436272,1.37086649,1819.3,1819.2,4.7968]
[1743277436473,1.37086649,1819.3,1819.2,6.2841]
[1743277436974,1.37086649,1819.3,1819.2,6.8345]
[1743277437371,1.37086649,1819.3,1819.2,6.2841]
[1743277437574,1.37086649,1819.3,1819.2,6.8345]
[1743277438273,1.37086649,1819.3,1819.2,6.2841]
[1743277442576,4.30728,1819.8,1819.6,1.09952]
[1743277442776,5.3027,1819.8,1819.7,2.45979]
[1743277442972,1.09986,1819.1,1819.0,0.5504]
[1743277443275,1.10004,1818.8,1818.7,1.73030681]
[1743277443481,4.30784,1818.8,1818.7,1.73030681]
[1743277443676,3.2078,1818.8,1818.6,1.3603]
[1743277443883,1.3888,1818.7,1818.6,1.3603]
[1743277444380,2.4889,1818.7,1818.6,1.3603]
[1743277447385,1.10016,1818.6,1818.5,3.70424605]
[1743277447582,2.58666,1818.6,1818.5,5.07124605]
[1743277447782,2.58666,1818.6,1818.5,1.37524605]
[1743277448277,2.58666,1818.6,1818.5,0.00824605]
[1743277448580,2.75056,1818.5,1817.9,55.65176]
[1743277448881,1.10047,1818.1,1818.0,1.4756]
[1743277449085,1.10052,1818.0,1817.9,54.489]
[1743277449386,2.47292,1818.0,1817.9,54.489]
[1743277449882,2.47292,1818.0,1817.9,55.9646]
[1743277451581,1.4437,1818.4,1817.9,59.1724]
[1743277451789,2.8082,1818.4,1818.0,1.4196]
[1743277452085,2.8082,1818.4,1818.1,1.82445]
[1743277452286,2.46486,1818.3,1818.2,1.4196]
[1743277453889,4.5723,1818.3,1818.0,3.697]
[1743277454185,4.5723,1818.3,1818.0,5.0629]
[1743277454186,1.10048,1818.1,1818.0,5.0629]
[1743277454386,2.53255,1818.2,1818.0,5.0629]
[1743277454586,2.53255,1818.2,1818.1,1.3659]
[1743277454984,1.4321,1818.2,1818.1,1.3659]
[1743277455283,2.5325,1818.2,1818.1,1.3659]
[1743277460791,1.10058,1817.9,1817.8,0.00824605]
[1743277461889,2.60958,1817.9,1817.8,0.00824605]
[1743277464891,5.81738,1817.9,1817.8,1.49304605]
[1743277465697,4.7168,1817.9,1817.8,1.49304605]
[1743277465891,4.7168,1817.9,1817.8,2.59368605]
[1743277466096,1.509,1817.9,1817.8,2.59368605]
[1743277466589,2.60958,1817.9,1817.8,2.59368605]
[1743277467299,2.60958,1817.9,1817.8,1.49304605]
[1743277467999,2.60958,1817.9,1817.8,2.59368605]
[1743277468200,3.2078,1818.1,1817.9,1.10058]
[1743277468397,5.79401,1818.1,1818.0,2.177]
[1743277468596,4.6935,1818.1,1818.0,2.177]
[1743277468896,4.6935,1818.1,1817.9,0.7089]
[1743277469103,1.10058,1817.9,1817.8,0.00824605]
[1743277469904,2.55698,1817.9,1817.8,1.41574605]
[1743277472501,1.10058,1817.9,1817.8,1.41574605]
[1743277478201,2.51748,1817.9,1817.8,1.41574605]
[1743277483512,2.51748,1817.9,1817.8,0.00824605]
[1743277483709,3.21928,1817.9,1817.8,3.70524605]
[1743277484112,3.21928,1817.9,1817.8,5.12504605]
[1743277489114,3.21928,1817.9,1817.8,6.22568605]
[1743277489514,3.21928,1817.9,1817.8,5.12504605]
[1743277492913,3.21928,1817.9,1817.8,1e-08]
[1743277496013,11.59328,1817.9,1817.8,1e-08]
[1743277496216,2.7518,1817.7,1817.0,1.4297]
[1743277496417,4.30872,1817.4,1817.2,1.10101]
[1743277496618,4.30872,1817.4,1817.1,2.57953]
[1743277496619,1.10098,1817.3,1817.1,2.57953]
[1743277496926,2.46408,1817.3,1817.2,1.4887]
[1743277497719,1.3631,1817.3,1817.2,2.58971]
[1743277498016,2.46405,1817.3,1817.2,1.4887]
[1743277502523,1.3631,1817.3,1817.2,1.4887]
[1743277502729,2.46405,1817.3,1817.2,1.4887]
[1743277504423,1.3631,1817.3,1817.2,2.58971]
[1743277505226,1.3631,1817.3,1817.2,1.4887]
[1743277505422,1.3631,1817.3,1817.2,2.58971]
[1743277506128,2.46405,1817.3,1817.2,2.58971]
[1743277508024,3.21604605,1817.4,1817.3,1.10095]
[1743277508226,0.00824605,1817.4,1817.3,6.87445]
[1743277509528,4.31693605,1817.4,1817.3,2.0765]
[1743277509727,1.10095,1817.3,1817.2,3.697]
[1743277509927,3.21745,1817.3,1817.2,5.1254]
[1743277510128,3.21745,1817.3,1817.2,1.4284]
[1743277510532,1.10101,1817.2,1817.1,4.41124605]
[1743277510736,2.50221,1817.2,1817.1,5.83964605]
[1743277511236,2.50221,1817.2,1817.1,1.43664605]
[1743277511926,2.50221,1817.2,1817.1,2.53771605]
[1743277512230,0.7153,1817.3,1817.1,1.43664605]
[1743277512436,3.23115,1817.3,1817.2,1.4495]
[1743277513727,3.23115,1817.3,1817.1,0.00824605]
[1743277513728,1.10101,1817.2,1817.1,0.00824605]
[1743277513929,2.51591,1817.2,1817.1,1.45774605]
[1743277515034,5.72371,1817.2,1817.1,1.45774605]
[1743277516230,7.37528,1817.2,1816.7,1.10127]
[1743277516532,4.30899,1816.9,1816.8,1.3828]
[1743277517131,4.30899,1816.9,1816.4,3.7582]
[1743277517132,5.7078,1816.9,1816.4,3.7582]
[1743277517331,4.30923,1816.5,1816.4,2.6297]
[1743277517531,4.30923,1816.5,1816.4,1.3828]
[1743277517734,3.2078,1816.5,1816.4,1.3828]
[1743277517937,4.07877,1816.6,1816.5,1.10143]
[1743277518127,4.07877,1816.6,1816.5,1.4381]
[1743277518526,1.10137,1816.6,1816.5,2.8046]
[1743277518726,2.59677,1816.6,1816.5,2.8046]
[1743277519031,1.10149,1816.4,1816.3,3.70524605]
[1743277519238,3.2078,1816.7,1816.3,3.70524605]
[1743277519437,1.4954,1816.8,1816.4,4.5743]
[1743277519737,1.4954,1816.8,1816.5,1.3665]
[1743277519925,1.4954,1816.8,1816.7,1.10131]
[1743277520228,3.2078,1816.9,1816.6,4.4351]
[1743277520428,4.30899,1816.9,1816.7,1.3665]
[1743277520826,1.4954,1816.8,1816.7,2.46781]
[1743277523533,3.2078,1816.9,1816.7,2.46781]
[1743277523534,4.30899,1816.9,1816.7,2.46779]
[1743277523845,5.78629,1816.9,1816.8,2.1982]
[1743277524141,5.78629,1816.9,1816.8,1.5062]
[1743277524528,1.10127,1816.8,1816.6,5.53645]
[1743277524732,2.57268,1816.8,1816.6,7.03206]
[1743277524934,2.57268,1816.8,1816.7,1.4956]
[1743277525746,3.32348,1816.8,1816.7,1.4956]
[1743277526040,2.2222,1816.8,1816.7,2.59691]
[1743277527742,3.2078,1817.1,1817.0,1.10112]
[1743277527937,4.5826,1817.1,1817.0,1.10112]
[1743277528241,1.3748,1817.1,1817.0,1.10112]
[1743277528541,1.3748,1817.1,1817.0,3.35632]
[1743277529036,0.00824605,1817.4,1817.0,2.2552]
[1743277529244,3.2078,1817.3,1817.1,2.221]
[1743277529537,2.47581,1817.2,1817.1,1.5097]
[1743277529744,2.47581,1817.2,1817.0,0.7455]
[1743277529745,1.10107,1817.1,1817.0,0.7455]
[1743277529941,6.015,1817.1,1816.8,6.255]
[1743277530345,1.4888,1817.0,1816.8,6.255]
[1743277530543,1.4888,1817.0,1816.9,1.10119]
[1743277530745,1.4888,1817.0,1816.8,6.255]
[1743277531045,1.4888,1817.0,1816.9,1.10119]
[1743277531241,1.4888,1817.0,1816.9,2.52669]
[1743277532639,3.9383,1817.3,1817.1,1.10102]
[1743277532835,1.4888,1817.2,1817.0,1.4255]
[1743277533038,1.4888,1817.2,1817.1,1.10102]
[1743277533241,1.4888,1817.2,1817.0,2.52658]
[1743277533446,2.58981,1817.2,1817.0,1.4255]
[1743277533641,2.58985,1817.2,1817.0,1.4255]
[1743277533942,1.4999,1817.1,1817.0,2.52663]
[1743277534638,1.4999,1817.1,1816.8,5.1538]
[1743277534639,1.10123,1816.9,1816.8,3.696]
[1743277534938,0.7198,1817.0,1816.8,4.79721]
[1743277535140,2.2197,1817.0,1816.9,2.48039]
[1743277535347,3.32083,1817.0,1816.9,1.3792]
[1743277535540,2.2197,1817.0,1816.9,2.48039]
[1743277536150,3.2078,1817.1,1817.0,1.10113]
[1743277536340,3.2078,1817.1,1817.0,2.48033]
[1743277537540,4.6187,1817.1,1817.0,2.48033]
[1743277541047,0.7198,1817.3,1817.2,1.10101]
[1743277541350,2.1028,1817.3,1817.2,1.10101]
[1743277541748,2.1028,1817.3,1817.2,3.29531]
[1743277543745,1.383,1817.3,1817.2,3.29531]
[1743277544847,0.00824605,1817.4,1817.3,1.10095]
[1743277545048,0.00824605,1817.4,1817.3,6.48505]
[1743277550556,1.4293,1817.7,1817.6,1.10077]
[1743277550860,0.6881,1817.9,1817.8,1.10064]
[1743277551155,1.78868,1817.9,1817.8,3.695]
[1743277551458,3.95488,1817.9,1817.8,3.695]
[1743277551660,2.8543,1817.9,1817.8,4.79564]
[1743277552856,2.8543,1817.9,1817.8,6.29944]
[1743277553160,1.4268,1817.9,1817.8,6.29944]
[1743277553957,3.21604605,1818.0,1817.8,6.29944]
[1743277553958,3.21604605,1818.0,1817.9,1.10058]
[1743277554157,3.21604605,1818.0,1817.9,2.60438]
[1743277555254,4.65334605,1818.0,1817.9,2.60438]
[1743277558561,4.65334605,1818.0,1817.9,1.5038]
[1743277558864,4.65334605,1818.0,1817.9,6.29838]
[1743277560768,4.65334605,1818.0,1817.9,4.79458]
[1743277561759,4.65334605,1818.0,1817.9,6.20468]
[1743277561967,1.44554605,1818.0,1817.9,6.20468]
[1743277562162,4.65334605,1818.0,1817.9,6.20468]
[1743277563872,0.00824605,1818.0,1817.9,6.20468]
[1743277565260,3.2078,1818.6,1818.1,1.10046]
[1743277565462,2.1128,1818.5,1818.4,1.10028]
[1743277568556,0.00824605,1818.6,1818.5,1.10022]
[1743277568866,1.10004,1818.9,1818.8,1.10004]
[1743277568867,0.6915,1818.9,1818.8,1.10004]
[1743277569064,3.2078,1819.0,1818.9,1.09998]
[1743277569367,4.656,1819.0,1818.9,1.4288]
[1743277570170,5.75592,1819.0,1818.9,1.4288]
[1743277570565,4.656,1819.0,1818.9,3.692]
[1743277572265,4.656,1819.0,1818.9,4.79198]
[1743277573268,4.656,1819.0,1818.9,3.692]
[1743277574868,5.75592,1819.0,1818.9,3.692]
[1743277575069,1.09998,1818.9,1818.8,0.00824605]
[1743277575270,1.4903,1818.9,1818.8,3.69924605]
[1743277575872,1.4903,1818.9,1818.8,4.79928605]
[1743277576373,2.59028,1818.9,1818.8,3.69924605]
[1743277576570,1.4903,1818.9,1818.8,3.69924605]
[1743277576873,2.59028,1818.9,1818.8,3.69924605]
[1743277577670,2.59028,1818.9,1818.8,4.79928605]
[1743277578471,2.59028,1818.9,1818.8,3.69924605]
[1743277579181,2.59028,1818.9,1818.8,4.79928605]
[1743277579182,1.4903,1818.9,1818.8,4.79928605]
[1743277579383,1.4903,1818.9,1818.8,6.18218605]
[1743277579770,2.59028,1818.9,1818.8,5.08214605]
[1743277580974,1.4903,1818.9,1818.8,6.18218605]
[1743277581678,2.59028,1818.9,1818.8,5.08214605]
[1743277581877,2.59028,1818.9,1818.8,3.69924605]
[1743277582676,1.4903,1818.9,1818.8,4.79928605]
[1743277582875,1.4903,1818.9,1818.8,6.19668605]
[1743277583770,1.10023,1818.5,1818.4,3.69]
[1743277583972,3.2078,1818.6,1818.3,1.3974]
[1743277584276,1.10034,1818.3,1818.2,3.2078]
[1743277584677,1.78794,1818.3,1818.2,3.2078]
[1743277586275,0.6876,1818.3,1818.2,4.3082]
[1743277586471,0.6876,1818.3,1818.2,5.7058]
[1743277586677,2.134,1818.3,1818.2,5.7058]
[1743277586879,0.7482,1818.5,1818.4,1.10028]
[1743277587079,1.4464,1818.5,1818.3,2.49791]
[1743277587269,2.54663,1818.5,1818.4,1.3976]
[1743277587474,1.10028,1818.4,1818.3,0.702]
[1743277587775,2.54668,1818.4,1818.3,2.0996]
[1743277587971,2.54668,1818.4,1818.2,0.6839]
[1743277587972,1.10034,1818.3,1818.2,0.6839]
[1743277588173,2.58824,1818.3,1818.2,2.0838]
[1743277588377,1.4879,1818.3,1818.2,3.1842]
[1743277588778,1.84157,1818.5,1818.3,1.10034]
[1743277588969,3.32947,1818.5,1818.3,2.50024]
[1743277589173,1.4879,1818.4,1818.3,2.50024]
[1743277589374,0.7413,1818.5,1818.4,1.10028]
[1743277589771,2.2292,1818.5,1818.4,1.10028]
[1743277590382,2.2292,1818.5,1818.2,0.6839]
[1743277590383,3.32942,1818.5,1818.3,1.1003]
[1743277590582,3.32942,1818.5,1818.4,1.82138]
[1743277590880,3.2078,1818.6,1818.5,1.10022]
[1743277591081,0.7285,1818.7,1818.5,1.80302]
[1743277591082,1.82863,1818.7,1818.5,1.80302]
[1743277591383,1.4683,1818.6,1818.5,1.80302]
[1743277592382,1.4683,1818.6,1818.5,0.7028]
[1743277592574,1.4683,1818.6,1818.5,1.80302]
[1743277592983,1.80831,1818.9,1818.7,1.1001]
[1743277593175,3.27661,1818.9,1818.7,4.7901]
[1743277593579,1.4683,1818.8,1818.7,4.7901]
[1743277594776,4.30776,1819.0,1818.8,1.10001]
[1743277595077,2.47798,1818.9,1818.8,0.7115]
[1743277595274,3.15958,1818.9,1818.8,0.7115]
[1743277596281,3.15958,1818.9,1818.7,3.689]
[1743277596282,1.10007,1818.8,1818.7,3.689]
[1743277596480,2.47807,1818.8,1818.7,3.689]
[1743277596881,2.47807,1818.8,1818.7,4.7891]
[1743277597085,1.378,1818.8,1818.7,4.7891]
[1743277599482,3.9491,1819.0,1818.7,3.689]
[1743277599684,1.45684604,1819.1,1819.0,1.09992]
[1743277599876,0.00824604,1819.1,1819.0,4.78892]
[1743277608484,1.09992,1819.0,1818.9,1.4796]
[1743277608692,1.09998,1818.9,1818.8,4.3834]
[1743277608883,1.09998,1818.9,1818.8,5.863]
[1743277608884,2.50928,1818.9,1818.8,5.863]
[1743277609483,1.4093,1818.9,1818.8,6.96304]
[1743277609887,2.50928,1818.9,1818.8,5.863]
[1743277610193,2.50928,1818.9,1818.8,5.1676]
[1743277611192,1.4093,1818.9,1818.5,0.7373]
[1743277611382,3.2078,1818.7,1818.4,50.811]
[1743277611583,1.4351,1818.6,1818.4,55.9882]
[1743277611786,3.2078,1818.7,1818.6,1.10016]
[1743277612188,3.2078,1818.7,1818.6,2.53136]
[1743277612585,3.2078,1818.7,1818.6,1.4312]
[1743277612894,5.6987,1818.7,1818.6,1.4312]
[1743277613096,5.6987,1818.7,1818.6,2.9055]
[1743277613596,4.5986,1818.7,1818.6,4.00566]
[1743277613793,1.3908,1818.7,1818.6,4.00566]
[1743277614295,1.3908,1818.7,1818.6,2.9055]
[1743277614700,1.3908,1818.7,1818.6,4.00566]
[1743277614894,1.3908,1818.7,1818.6,2.9055]
[1743277615496,1.3908,1818.7,1818.6,4.00566]
[1743277615894,2.4909,1818.7,1818.6,4.00566]
[1743277616094,1.3908,1818.7,1818.6,4.00566]
[1743277616290,3.2078,1818.9,1818.6,2.9055]
[1743277616495,1.4706,1818.8,1818.7,2.47836]
[1743277616698,1.4706,1818.8,1818.7,1.3783]
[1743277617197,1.4706,1818.8,1818.7,2.4784]
[1743277617891,1.4706,1818.8,1818.7,6.1654]
[1743277618196,2.57064,1818.8,1818.7,5.0653]
[1743277618795,1.4706,1818.8,1818.7,6.1654]
[1743277619298,2.57064,1818.8,1818.7,5.0653]
[1743277620490,2.57064,1818.8,1818.7,6.1654]
[1743277621092,2.57064,1818.8,1818.7,5.0653]
[1743277622996,0.7545,1819.0,1818.9,1.09998]
[1743277623205,2.55503604,1819.1,1818.9,1.09998]
[1743277623393,2.55503604,1819.1,1819.0,1.4574]
[1743277623996,1.45514604,1819.1,1819.0,6.24432]
[1743277624301,1.10810604,1819.1,1819.0,5.1444]
[1743277624802,1.39934604,1819.1,1819.0,6.24432]
[1743277625301,2.49920604,1819.1,1819.0,5.1444]
[1743277625499,1.39934604,1819.1,1819.0,6.24432]
[1743277626399,0.00824604,1819.1,1819.0,6.24432]
[1743277626699,0.00824604,1819.1,1819.0,6.96622]
[1743277628290,3.2078,1819.5,1819.0,7.8871]
[1743277628504,3.2078,1819.9,1819.8,1.09943]
[1743277629499,3.2078,1820.1,1820.0,1.09931]
[1743277629701,3.2078,1820.1,1820.0,4.78531]
[1743277630100,5.81515,1820.1,1820.0,3.686]
[1743277630306,4.7159,1820.1,1820.0,3.686]
[1743277630602,5.81519,1820.1,1820.0,3.686]
[1743277630997,4.7159,1820.1,1820.0,4.78531]
[1743277631197,5.81515,1820.1,1820.0,3.686]
[1743277631396,4.7159,1820.1,1820.0,4.78531]
[1743277631593,3.2078,1820.1,1820.0,4.78531]
[1743277632706,1.49944605,1820.2,1820.1,1.09925]
[1743277632906,0.00824605,1820.2,1820.1,2.48795]
[1743277633098,0.00824605,1820.2,1820.1,3.96575]
[1743277636207,1e-08,1820.2,1820.1,3.96575]
[1743277636408,1e-08,1820.2,1820.1,4.51535]
[1743277637905,1e-08,1820.2,1820.1,7.01535]
[1743277638109,3.2078,1821.0,1820.2,2.74798]
[1743277638413,4.6177,1821.0,1820.9,1.09877]
[1743277638704,1.4099,1821.0,1820.9,4.78277]
[1743277638913,5.00409,1821.2,1821.0,1.09868]
[1743277639116,1.4099,1821.1,1821.0,1.4952]
[1743277639314,2.50855,1821.1,1821.0,1.4952]
[1743277640506,1.09876,1821.0,1820.8,0.00824605]
[1743277640709,1.4863,1820.9,1820.8,1.10706605]
[1743277640911,1.4863,1820.9,1820.8,4.79006605]
[1743277641114,1.4863,1820.9,1820.8,1.10706605]
[1743277641313,2.58507,1820.9,1820.8,3.69124605]
[1743277641615,1.4863,1820.9,1820.8,4.79007605]
[1743277642408,3.2078,1821.0,1820.9,1.09877]
[1743277642609,1.09871,1821.0,1820.9,1.4083]
[1743277642809,2.58496,1821.1,1820.9,2.50705]
[1743277643313,4.30651,1821.0,1820.9,1.4083]
[1743277643507,5.67191,1821.0,1820.9,1.4083]
[1743277643914,5.67191,1821.0,1820.8,3.69124605]
[1743277644112,1.09877,1820.9,1820.8,0.00824605]
[1743277644319,2.46417,1820.9,1820.8,3.69124605]
[1743277644514,3.18837,1820.9,1820.8,3.69124605]
[1743277644816,2.0896,1820.9,1820.8,4.79007605]
[1743277645018,2.0896,1820.9,1820.8,3.69124605]
[1743277645313,2.0896,1820.9,1820.8,4.79007605]
[1743277645517,2.0896,1820.9,1820.8,6.16817605]
[1743277646124,2.0896,1820.9,1820.8,5.06934605]
[1743277646625,2.0896,1820.9,1820.8,6.16817605]
[1743277647118,1.3654,1820.9,1820.8,6.16817605]
[1743277647321,1.09867,1821.1,1820.9,1.09874]
[1743277647516,2.56667,1821.1,1821.0,1.4355]
[1743277647915,1.468,1821.1,1821.0,1.4355]
[1743277648326,2.56665,1821.1,1821.0,1.4355]
[1743277649327,2.56665,1821.1,1820.9,1.09877]
[1743277649630,4.6972,1821.0,1820.9,3.681]
[1743277649817,1.09877,1820.9,1820.8,0.00824605]
[1743277650019,3.27317,1820.9,1820.8,0.00824605]
[1743277650215,2.1744,1820.9,1820.8,0.00824605]
[1743277650422,3.27317,1820.9,1820.8,0.00824605]
[1743277650926,2.1744,1820.9,1820.8,1.10707605]
[1743277651122,2.1744,1820.9,1820.8,2.51057605]
[1743277651427,2.1744,1820.9,1820.8,1.41174605]
[1743277651630,3.27317,1820.9,1820.8,1.41174605]
[1743277652017,3.27317,1820.9,1820.8,0.00824605]
[1743277653328,2.1744,1820.9,1820.8,1.10707605]
[1743277653629,2.1744,1820.9,1820.8,2.52847605]
[1743277654225,3.27317,1820.9,1820.8,1.42964605]
[1743277655027,3.27317,1820.9,1820.8,0.00824605]
[1743277656626,1.09918,1820.3,1820.1,1.09923]
[1743277656927,3.2078,1820.5,1820.2,3.681]
[1743277657129,0.7531,1820.4,1820.3,1.09913]
[1743277657328,3.2078,1820.9,1820.6,1.09891]
[1743277657530,2.99266936,1824.3,1820.3,1.4931]
[1743277657531,3.2078,1822.0,1821.6,1.09835]
[1743277657828,3.2078,1822.0,1820.8,3.2078]
[1743277657829,3.2078,1821.8,1821.3,3.2078]
[1743277658020,3.2078,1821.8,1821.3,3.681]
[1743277658021,1.09851,1821.4,1821.3,3.681]
[1743277658224,1.09844,1821.5,1821.3,3.681]
[1743277658424,1.85154,1821.5,1821.3,3.681]
[1743277658625,1.09847,1821.4,1821.3,3.681]
[1743277659224,1.09847,1821.4,1821.2,1.41604605]
[1743277659225,1.09853,1821.3,1821.2,0.00824605]
[1743277659930,1.84953,1821.3,1821.2,0.00824605]
[1743277661130,0.751,1821.3,1821.2,0.00824605]
[1743277661427,0.751,1821.3,1821.2,2.60823605]
[1743277662036,0.751,1821.3,1821.2,1.50964605]
[1743277662336,0.751,1821.3,1821.2,2.60823605]
[1743277662738,0.751,1821.3,1821.2,1.50964605]
[1743277663327,0.751,1821.3,1821.2,2.60823605]
[1743277663530,0.7531,1821.5,1821.2,1.50964605]
[1743277663731,0.7531,1821.5,1821.3,4.7092]
[1743277664227,1.85151,1821.5,1821.4,1.4674]
[1743277664427,0.7531,1821.5,1821.4,6.24587]
[1743277665337,1.80566,1821.6,1821.4,6.24587]
[1743277665534,1.80566,1821.6,1821.5,1.4674]
[1743277666134,1.09836,1821.6,1821.5,1.4674]
[1743277666342,1.09835,1821.6,1821.5,4.6752]
[1743277668146,1.3697,1821.6,1821.5,5.77361]
[1743277668337,2.46805,1821.6,1821.5,5.77361]
[1743277668638,2.46805,1821.6,1821.5,5.3859]
[1743277670043,2.46805,1821.6,1821.5,6.48431]
[1743277671238,2.46805,1821.6,1821.5,2.1781]
[1743277672447,1.3697,1821.6,1821.5,3.27651]
[1743277673343,1.09847,1821.4,1821.3,0.726]
[1743277673541,1.09853,1821.3,1821.2,0.00824605]
[1743277673740,4.00503,1821.3,1821.2,0.00824605]
[1743277678041,6.50503,1821.3,1821.2,0.00824605]
[1743277678258,6.50503,1821.3,1820.7,54.434]
[1743277678259,1.09883,1820.8,1820.7,54.434]
[1743277678743,1.09883,1820.8,1820.7,3.68]
[1743277678938,1.09883,1820.8,1820.7,5.1098]
[1743277679140,2.57743,1820.8,1820.7,5.1098]
[1743277679740,1.4786,1820.8,1820.7,6.20869]
[1743277679950,2.57743,1820.8,1820.7,5.1098]
[1743277681236,4.6864,1820.8,1820.6,0.00824605]
[1743277681437,2.60129,1820.7,1820.6,0.00824605]
[1743277682239,1.5024,1820.7,1820.6,0.00824605]
[1743277682438,1.5024,1820.7,1820.6,1.10719605]
[1743277682643,2.60129,1820.7,1820.6,0.00824605]
[1743277683445,2.60129,1820.7,1820.6,1.45364605]
[1743277685951,2.60129,1820.7,1820.6,0.00824605]
[1743277687454,1.09907,1820.4,1820.3,4.3922]
[1743277687645,1.09907,1820.4,1820.3,5.1023]
[1743277688055,1.09907,1820.4,1820.3,1.4223]
[1743277688244,2.50817,1820.4,1820.3,1.4223]
[1743277688650,2.50817,1820.4,1820.2,5.1293]
[1743277688651,1.09913,1820.3,1820.2,4.41694605]
[1743277688849,2.52323,1820.3,1820.2,4.41694605]
[1743277689049,2.52323,1820.3,1820.2,5.82304605]
[1743277690450,2.52323,1820.3,1820.2,5.09434605]
[1743277690855,1.09925,1820.1,1820.0,6.8878]
[1743277691054,1.09925,1820.1,1820.0,8.2939]
[1743277692959,1.09925,1820.1,1820.0,4.6139]
[1743277693161,2.48705,1820.1,1820.0,4.6139]
[1743277693853,1.78115,1820.1,1820.0,4.6139]
[1743277694660,1.09925,1820.1,1820.0,4.6139]
[1743277694859,1.09925,1820.1,1820.0,5.3313]
[1743277695064,1.09925,1820.1,1820.0,6.43058]
[1743277695263,1.4241,1820.2,1820.0,5.3313]
[1743277695561,2.52329,1820.2,1820.1,1.3665]
[1743277697757,2.52329,1820.2,1820.1,2.46575]
[1743277697957,2.52329,1820.2,1820.1,1.3665]
[1743277702266,2.52329,1820.2,1819.9,4.43234605]
[1743277702267,1.09931,1820.0,1819.9,4.43234605]
[1743277702466,1.09931,1820.0,1819.9,5.80274605]
[1743277702667,1.09931,1820.0,1819.9,2.12174605]
[1743277702866,2.47741,1820.0,1819.9,2.12174605]
[1743277706573,2.47741,1820.0,1819.9,0.00824605]
[1743277708272,1.09927,1820.1,1820.0,1.0993]
[1743277708470,1.4498,1820.3,1820.0,5.821]
[1743277708767,1.09925,1820.1,1820.0,4.4]
[1743277709578,1.09925,1820.1,1820.0,5.49931]
[1743277709773,1.09925,1820.1,1820.0,4.4]
[1743277710069,1.09925,1820.1,1820.0,5.49931]
[1743277710667,1.09925,1820.1,1820.0,4.4]
[1743277712670,1.09925,1820.1,1820.0,5.49931]
[1743277714775,1.09931,1820.0,1819.9,0.00824605]
[1743277714969,3.99091,1820.0,1819.9,0.00824605]
[1743277715175,2.58611,1820.0,1819.9,0.00824605]
[1743277715469,1.09925,1820.1,1820.0,1.09931]
[1743277715672,1.09931,1820.0,1819.9,0.00824605]
[1743277721081,1.82091,1820.0,1819.9,0.00824605]
[1743277721267,3.31691,1820.0,1819.9,0.00824605]
[1743277729280,1.496,1820.0,1819.9,1.10761605]
[1743277729479,0.6861,1820.2,1819.9,1.43044605]
[1743277729682,2.56601,1820.1,1820.0,4.3974]
[1743277729986,2.56601,1820.1,1820.0,5.8196]
[1743277733693,2.56601,1820.1,1820.0,5.1022]
[1743277734085,2.56601,1820.1,1820.0,6.20151]
[1743277735291,2.56601,1820.1,1820.0,5.1022]
[1743277736196,1.09931,1820.1,1820.0,6.20151]
[1743277736894,1.09931,1820.1,1820.0,5.1022]
[1743277737095,2.54901,1820.1,1820.0,5.1022]
[1743277739199,1.09931,1820.0,1819.9,0.00824605]
[1743277739499,2.54901,1820.0,1819.9,0.00824605]
[1743277739691,3.28151,1820.0,1819.9,0.00824605]
[1743277740788,3.28151,1820.0,1819.9,1.36694605]
[1743277741599,2.54901,1820.0,1819.9,1.36694605]
[1743277742699,2.54901,1820.0,1819.9,0.00824605]
[1743277743099,2.54901,1820.0,1819.9,1.36694605]
[1743277746493,2.54901,1820.0,1819.9,0.00824605]
[1743277746697,7.40585,1820.0,1819.5,5.51701]
[1743277746906,4.30729,1819.8,1819.6,1.09955]
[1743277747114,1.09949,1819.8,1819.6,5.69585]
[1743277747303,2.60029,1819.8,1819.6,5.69581]
[1743277747504,2.60029,1819.8,1819.7,1.3885]
[1743277749108,2.60029,1819.8,1819.7,2.48799]
[1743277749409,2.60029,1819.8,1819.7,1.3885]
[1743277752909,1.10029,1818.4,1818.0,4.30829]
[1743277753110,3.2078,1818.3,1818.0,0.7244]
[1743277753411,2.5616,1818.2,1818.1,1.42935667]
[1743277753609,2.5616,1818.2,1818.1,1.35278102]
[1743277753805,3.2078,1818.3,1818.1,1.35278102]
[1743277754012,3.21604605,1818.3,1818.1,1.35278102]
[1743277754313,3.21604605,1818.3,1818.1,5.03178102]
[1743277754708,1.10858605,1818.3,1818.1,3.679]
[1743277754905,4.31638605,1818.3,1818.1,3.679]
[1743277755107,3.21604605,1818.3,1818.1,3.679]
[1743277755308,0.00824605,1818.3,1818.1,3.679]
[1743277755511,0.00824605,1818.3,1818.1,1.10044]
[1743277755814,1.10043,1818.2,1818.1,3.68]
[1743277756013,1.10046,1818.1,1818.0,4.40989745]
[1743277756211,4.30826,1818.1,1818.0,0.00549745]
[1743277757515,1.10052,1818.0,1817.9,1.48387311]
[1743277757712,2.46002,1818.0,1817.9,1.48387311]
[1743277759213,2.46002,1818.0,1817.8,4.415]
[1743277759214,1.10058,1817.9,1817.8,4.415]
[1743277759417,5.81028,1817.9,1817.8,4.415]
[1743277759612,5.81028,1817.9,1817.8,3.681]
[1743277760708,1.1007,1817.7,1817.6,1.3647]
[1743277760904,4.3085,1817.7,1817.6,1.3647]
[1743277761104,4.3085,1817.7,1817.6,5.0457]